bitfinex/quotes_BTCUSD_20260104
["timestamp","ask_amount","ask_price","bid_price","bid_amount"]
[1767559825009,0.06576064,91240.0,91235.0,0.00525525]
[1767559825745,0.0109601,91240.0,91236.0,0.01096058]
[1767559826526,0.0109601,91240.0,91235.0,0.06005861]
[1767559827503,0.06576064,91240.0,91235.0,0.06005861]
[1767559827702,0.0109601,91240.0,91235.0,0.06005861]
[1767559828433,0.01096022,91239.0,91233.0,0.11517515]
[1767559828637,0.01096022,91239.0,91234.0,0.01096082]
[1767559828966,0.0109601,91240.0,91236.0,0.01096058]
[1767559829342,0.06575995,91241.0,91236.0,0.01096058]
[1767559829947,0.01095974,91243.0,91236.0,0.06576338]
[1767559830149,0.0547994,91242.0,91236.0,0.06576338]
[1767559830375,0.0657576,91245.0,91242.0,0.000999]
[1767559830672,0.05479293,91253.0,91245.0,0.0109595]
[1767559830871,0.03287866,91252.0,91246.0,0.01095938]
[1767559831070,0.02192,91252.0,91247.0,0.01095926]
[1767559831249,0.02192,91252.0,91246.0,0.01095938]
[1767559831250,0.0109589,91250.0,91246.0,0.01095938]
[1767559831453,0.0876725,91252.0,91247.0,0.01095926]
[1767559831671,0.0876725,91252.0,91247.0,0.06575551]
[1767559831864,0.0876725,91252.0,91247.0,0.01095926]
[1767559832039,0.0876725,91252.0,91246.0,0.06575588]
[1767559832040,0.01095878,91251.0,91246.0,0.06575588]
[1767559832889,0.0876725,91252.0,91247.0,0.01095926]
[1767559833238,0.21931807,91256.0,91247.0,0.01095926]
[1767559833239,0.06574983,91255.0,91249.0,0.01095902]
[1767559833461,0.06574983,91255.0,91246.0,0.06575574]
[1767559833462,4.4e-05,91249.0,91246.0,0.06575574]
[1767559833662,0.06575177,91253.0,91247.0,0.06575503]
[1767559834078,0.06575177,91253.0,91248.0,0.01095914]
[1767559834260,0.01095866,91252.0,91248.0,0.01095914]
[1767559834789,0.06575177,91253.0,91248.0,0.01095914]
[1767559834989,0.0109583,91255.0,91249.0,0.06575384]
[1767559834990,0.06575023,91255.0,91249.0,0.06575384]
[1767559835364,0.06575023,91255.0,91250.0,0.0109589]
[1767559835557,0.06575056,91254.0,91249.0,0.06575384]
[1767559835812,0.06575056,91254.0,91249.0,0.06570978]
[1767559836003,0.06575023,91255.0,91250.0,0.0109589]
[1767559836166,0.0109583,91255.0,91250.0,0.06575335]
[1767559836371,0.0659018,91256.0,91251.0,0.11300005]
[1767559836591,0.0659018,91256.0,91252.0,0.01095866]
[1767559836789,0.0659018,91256.0,91251.0,0.01095878]
[1767559836790,0.0001522,91256.0,91251.0,0.01095878]
[1767559836991,1e-08,91258.0,91257.0,0.05479031]
[1767559837201,1e-08,91258.0,91256.0,0.10203825]
[1767559837376,1e-08,91258.0,91257.0,0.05479031]
[1767559837585,1e-08,91258.0,91257.0,0.10203768]
[1767559839893,0.01292001,91263.0,91260.0,0.0109577]
[1767559840092,0.01292001,91263.0,91260.0,0.01081909]
[1767559840549,0.01292001,91263.0,91260.0,0.01068049]
[1767559840707,0.01292001,91263.0,91261.0,0.05478791]
[1767559840928,0.01292001,91263.0,91259.0,0.06574634]
[1767559841132,0.01095746,91262.0,91257.0,0.01095806]
[1767559841316,0.01292001,91263.0,91258.0,0.01095794]
[1767559842048,0.01292001,91263.0,91259.0,0.01095782]
[1767559842220,0.01292001,91263.0,91259.0,0.06574681]
[1767559842880,0.01292001,91263.0,91259.0,0.01095782]
[1767559843088,0.02387735,91263.0,91258.0,0.01095794]
[1767559843298,0.02387735,91263.0,91257.0,0.01095806]
[1767559843488,0.01095758,91261.0,91256.0,0.06574909]
[1767559843653,0.02387735,91263.0,91254.0,0.11299747]
[1767559843654,0.01095782,91259.0,91254.0,0.11299747]
[1767559843854,0.06574785,91258.0,91254.0,0.04724737]
[1767559844191,0.06575135,91253.0,91249.0,0.04724737]
[1767559844335,0.01095854,91253.0,91249.0,0.04724737]
[1767559844738,0.01095842,91254.0,91249.0,0.11300137]
[1767559844976,0.01095842,91254.0,91250.0,0.0109589]
[1767559845154,0.01095842,91254.0,91249.0,0.11300137]
[1767559845367,0.01095842,91254.0,91253.0,0.00059751]
[1767559845570,0.01095842,91254.0,91252.0,0.00048879]
[1767559845750,0.01095842,91254.0,91249.0,0.065754]
[1767559845951,0.0109583,91255.0,91250.0,0.05479452]
[1767559846175,0.01095842,91254.0,91250.0,0.0109589]
[1767559846368,0.01095842,91254.0,91247.0,0.02192]
[1767559846576,0.06574997,91255.0,91250.0,0.0109589]
[1767559847172,0.06574997,91255.0,91250.0,0.05820627]
[1767559848650,0.06575064,91254.0,91250.0,0.04724737]
[1767559849872,0.0109583,91255.0,91250.0,0.05820627]
[1767559850076,0.06574923,91256.0,91251.0,0.01095878]
[1767559850279,0.0109583,91255.0,91250.0,0.11300044]
[1767559850518,0.01095818,91256.0,91251.0,0.05479334]
[1767559850703,0.01095806,91257.0,91255.0,0.000999]
[1767559851076,0.01095806,91257.0,91252.0,0.01095866]
[1767559851290,0.01095818,91256.0,91251.0,0.06575212]
[1767559851488,0.01095818,91256.0,91251.0,0.01095878]
[1767559851805,0.0109583,91255.0,91250.0,0.11300044]
[1767559852010,0.0099593,91255.0,91250.0,0.11300044]
[1767559852228,0.06574955,91256.0,91251.0,0.01095878]
[1767559852455,0.06574955,91256.0,91251.0,0.06575266]
[1767559852818,0.01095818,91256.0,91251.0,0.06575266]
[1767559853017,0.01095818,91256.0,91252.0,0.01095866]
[1767559853320,0.01095818,91256.0,91251.0,0.06575266]
[1767559854369,0.01095818,91256.0,91251.0,0.06153351]
[1767559854593,0.0109583,91255.0,91250.0,0.05820627]
[1767559854783,0.06575095,91254.0,91248.0,0.06575452]
[1767559854940,0.01095842,91254.0,91249.0,0.05820639]
[1767559855147,0.01095842,91254.0,91250.0,0.0109589]
[1767559855696,0.00595842,91254.0,91250.0,0.0109589]
[1767559855913,0.00595842,91254.0,91249.0,0.11300127]
[1767559856657,0.06075061,91254.0,91249.0,0.11300127]
[1767559857013,0.06575023,91255.0,91250.0,0.0109589]
[1767559857554,0.0109583,91255.0,91250.0,0.06575331]
[1767559857757,0.06574928,91256.0,91250.0,0.06575331]
[1767559858013,0.05479152,91255.0,91250.0,0.06575331]
[1767559859111,0.01095854,91253.0,91249.0,0.05820639]
[1767559859294,0.01095842,91254.0,91249.0,0.11300136]
[1767559859696,0.01095842,91254.0,91250.0,0.0109589]
[1767559860164,0.01095818,91256.0,91250.0,0.06575332]
[1767559860364,0.01095842,91254.0,91250.0,0.0109589]
[1767559860677,0.06575022,91255.0,91250.0,0.06575341]
[1767559860887,0.06574958,91256.0,91250.0,0.06575341]
[1767559861096,0.06574984,91255.0,91250.0,0.06575341]
[1767559861716,0.01095842,91254.0,91249.0,0.11300033]
[1767559862013,0.01095842,91254.0,91248.0,0.06575479]
[1767559862014,0.000999,91249.0,91248.0,0.05479561]
[1767559862217,0.01095842,91254.0,91248.0,0.05479561]
[1767559862397,0.01095854,91253.0,91248.0,0.06575475]
[1767559862576,0.01095866,91252.0,91249.0,0.0005975]
[1767559862775,0.01025854,91252.0,91249.0,0.0005975]
[1767559863025,0.01095854,91253.0,91249.0,5e-07]
[1767559863526,0.06575168,91253.0,91249.0,5e-07]
[1767559864282,0.01095866,91252.0,91249.0,5e-07]
[1767559864534,0.06575168,91253.0,91249.0,5e-07]
[1767559864995,0.06575032,91255.0,91249.0,0.01095952]
[1767559865410,0.05479226,91254.0,91249.0,0.01095952]
[1767559865649,0.06575054,91254.0,91249.0,0.01095952]
[1767559865845,0.01095662,91269.0,91260.0,0.0109577]
[1767559866048,0.02987479,91293.0,91259.0,0.35431738]
[1767559866049,0.01095698,91266.0,91259.0,0.35431738]
[1767559866249,0.0109571,91265.0,91260.0,0.0109577]
[1767559866450,0.06574235,91266.0,91261.0,0.01095758]
[1767559866657,0.01095614,91273.0,91266.0,0.0657417]
[1767559866813,0.01095626,91272.0,91268.0,0.04573927]
[1767559867028,0.000999,91268.0,91265.0,0.0109571]
[1767559867270,0.000999,91268.0,91265.0,0.06574251]
[1767559867672,0.0109565,91270.0,91266.0,0.01095698]
[1767559867916,0.0109565,91270.0,91265.0,0.06574251]
[1767559868122,0.01095638,91271.0,91266.0,0.05478477]
[1767559868261,0.01095638,91271.0,91266.0,0.01095698]
[1767559868461,0.06573877,91271.0,91266.0,0.01095698]
[1767559868659,0.03305937,91306.0,91269.0,0.04573927]
[1767559868660,0.01095554,91278.0,91269.0,0.04573927]
[1767559868903,0.01095602,91274.0,91269.0,0.04573927]
[1767559869099,0.01095602,91274.0,91263.0,0.01095734]
[1767559869100,0.05478121,91273.0,91266.0,0.05478382]
[1767559869318,0.21911121,91278.0,91265.0,0.0109571]
[1767559869319,0.05478126,91274.0,91267.0,0.06574099]
[1767559869520,0.06573728,91274.0,91270.0,0.0109565]
[1767559869717,0.01095602,91274.0,91265.0,0.0109571]
[1767559869921,0.000999,91270.0,91267.0,0.01095686]
[1767559870285,0.01095626,91272.0,91267.0,0.01095686]
[1767559870486,0.01095626,91272.0,91267.0,0.06574084]
[1767559870684,0.06573767,91272.0,91267.0,0.01095686]
[1767559870887,0.06573831,91271.0,91266.0,0.06574129]
[1767559871093,0.23007417,91275.0,91270.0,0.0109565]
[1767559871094,0.06573651,91275.0,91270.0,0.0109565]
[1767559871323,0.01095602,91274.0,91270.0,0.0109565]
[1767559872644,0.01095602,91274.0,91269.0,0.06573923]
[1767559873799,0.01095554,91278.0,91270.0,0.11147804]
[1767559873926,0.0109559,91275.0,91270.0,0.11147804]
[1767559874133,0.00045114,91271.0,91269.0,0.06573972]
[1767559874334,0.06573547,91275.0,91270.0,0.0109565]
[1767559874746,0.01095602,91274.0,91269.0,0.06573972]
[1767559875376,0.05477957,91275.0,91270.0,0.0109565]
[1767559876012,0.21908682,91289.0,91272.0,0.01095626]
[1767559876219,0.0109553,91280.0,91276.0,0.04573927]
[1767559876805,0.06573149,91281.0,91276.0,0.05669505]
[1767559876968,0.06573149,91281.0,91276.0,0.01095578]
[1767559877306,0.06563148,91281.0,91276.0,0.01095578]
[1767559877911,0.02202796,91282.0,91276.0,0.01095578]
[1767559877912,0.00010796,91282.0,91279.0,0.01095542]
[1767559878078,0.00010796,91282.0,91276.0,0.05669505]
[1767559878079,0.01095518,91281.0,91278.0,0.04573927]
[1767559878498,0.06583836,91282.0,91278.0,0.04573927]
[1767559878707,0.000999,91278.0,91277.0,0.06573387]
[1767559878913,0.01106302,91282.0,91278.0,0.01095554]
[1767559879114,0.00010796,91282.0,91278.0,0.01095554]
[1767559879518,0.00010796,91282.0,91278.0,0.06573318]
[1767559880473,0.00010796,91282.0,91281.0,0.05477591]
[1767559881874,7.95e-06,91282.0,91281.0,0.05477591]
[1767559882071,7.95e-06,91282.0,91281.0,0.10051518]
[1767559882916,7.95e-06,91282.0,91281.0,0.05477591]
[1767559883120,0.04597187,91289.0,91283.0,0.0657296]
[1767559883435,0.01095434,91288.0,91284.0,0.01095482]
[1767559883776,0.01095434,91288.0,91281.0,0.05477591]
[1767559883777,0.00089899,91284.0,91282.0,0.0657303]
[1767559883977,0.00089899,91284.0,91282.0,0.06573033]
[1767559884181,0.06572616,91288.0,91282.0,0.06573033]
[1767559884182,0.01095434,91288.0,91283.0,0.01095494]
[1767559884678,0.06572638,91288.0,91283.0,0.01095494]
[1767559884890,0.06562637,91288.0,91283.0,0.01095494]
[1767559885118,0.01095446,91287.0,91283.0,0.01095494]
[1767559885858,0.06562637,91288.0,91283.0,0.01095494]
[1767559886081,0.06562637,91288.0,91283.0,0.06572955]
[1767559886384,0.06562637,91288.0,91283.0,0.01095494]
[1767559886921,0.06562637,91288.0,91283.0,0.06572953]
[1767559887281,0.06562637,91288.0,91283.0,0.01095494]
[1767559887672,0.01095446,91287.0,91283.0,0.01095494]
[1767559888396,0.01095422,91289.0,91284.0,0.05477357]
[1767559888681,0.000799,91284.0,91282.0,0.05477525]
[1767559888887,0.01095446,91287.0,91283.0,0.01095494]
[1767559889889,0.06572605,91288.0,91283.0,0.01095494]
[1767559890060,0.00051351,91284.0,91283.0,0.01095494]
[1767559890263,0.00041351,91284.0,91283.0,0.01095494]
[1767559890796,0.04513956,91288.0,91283.0,0.06572959]
[1767559891297,0.0560939,91288.0,91283.0,0.06572959]
[1767559891499,0.06572686,91287.0,91282.0,0.01095506]
[1767559891708,0.06572686,91287.0,91283.0,0.01095494]
[1767559891709,0.01095446,91287.0,91283.0,0.01095494]
[1767559891853,0.06572687,91287.0,91282.0,0.06573009]
[1767559892252,0.000999,91282.0,91280.0,0.06573172]
[1767559892811,0.06572687,91287.0,91282.0,0.01095506]
[1767559893194,0.01095458,91286.0,91281.0,0.06573109]
[1767559893399,0.01095482,91284.0,91279.0,0.01095542]
[1767559893603,0.01095482,91284.0,91279.0,0.00996582]
[1767559893806,0.06573181,91280.0,91279.0,0.00996582]
[1767559894332,0.05477903,91276.0,91271.0,0.01095638]
[1767559894532,0.21909884,91283.0,91271.0,0.01095638]
[1767559894533,0.04831714,91272.0,91271.0,0.00010796]
[1767559894733,0.05478131,91272.0,91271.0,0.00010796]
[1767559895703,0.04831714,91268.0,91254.0,0.06575004]
[1767559895906,0.02192,91275.0,91255.0,0.02192]
[1767559895907,0.01095782,91259.0,91255.0,0.02192]
[1767559896106,0.0109577,91260.0,91259.0,0.00089114]
[1767559896311,0.05478802,91261.0,91256.0,0.01095818]
[1767559896533,0.05478802,91261.0,91256.0,0.065749]
[1767559896700,0.01095746,91262.0,91257.0,0.01095806]
[1767559897417,0.06574408,91263.0,91258.0,0.06574763]
[1767559897603,0.01095734,91263.0,91257.0,0.06574834]
[1767559897939,0.06574433,91263.0,91262.0,0.00056554]
[1767559898090,0.06574433,91263.0,91262.0,0.00045754]
[1767559900216,0.0109577,91260.0,91256.0,0.01095818]
[1767559900650,0.0109577,91260.0,91255.0,0.0109583]
[1767559900867,0.0657463,91260.0,91255.0,0.0109583]
[1767559901891,0.01095782,91259.0,91255.0,0.0109583]
[1767559902046,0.06574727,91259.0,91254.0,0.03287842]
[1767559902593,0.01049849,91258.0,91254.0,0.03287842]
[1767559902934,0.00949949,91258.0,91255.0,0.06574933]
[1767559903387,0.00949949,91258.0,91256.0,0.05479052]
[1767559903713,0.00049949,91258.0,91256.0,0.05479052]
[1767559904650,0.00049949,91258.0,91254.0,0.0657505]
[1767559904834,0.00049949,91258.0,91255.0,0.0109583]
[1767559906513,0.00049949,91258.0,91256.0,0.05479078]
[1767559907905,0.00045453,91258.0,91256.0,0.05479078]
[1767559908234,0.0003646,91258.0,91256.0,0.05479078]
[1767559908533,0.0109571,91265.0,91256.0,0.01095818]
[1767559908691,0.0109571,91265.0,91259.0,0.06574689]
[1767559908894,0.01095698,91266.0,91261.0,0.06574535]
[1767559909093,0.03287674,91268.0,91262.0,0.0657443]
[1767559909297,0.02192,91268.0,91263.0,0.05478624]
[1767559909497,0.0109571,91265.0,91260.0,0.0109577]
[1767559909706,0.06574263,91265.0,91260.0,0.06574608]
[1767559910063,0.06567386,91265.0,91260.0,0.0109577]
[1767559910390,0.06574237,91266.0,91262.0,0.01095746]
[1767559910621,0.0109571,91265.0,91261.0,0.01095758]
[1767559910812,0.06574237,91266.0,91261.0,0.06574548]
[1767559911245,0.01095626,91272.0,91265.0,0.0109571]
[1767559911484,0.06573475,91276.0,91269.0,0.05478311]
[1767559911656,0.01095542,91279.0,91271.0,0.05885332]
[1767559911854,0.01095542,91279.0,91273.0,0.01095614]
[1767559912072,0.01095542,91279.0,91272.0,0.05478077]
[1767559912073,0.01095566,91277.0,91275.0,0.07895516]
[1767559912352,0.0005271,91276.0,91275.0,0.07795616]
[1767559912630,0.0005271,91276.0,91272.0,0.01095626]
[1767559912631,0.0005271,91276.0,91272.0,0.06573744]
[1767559912822,0.01095566,91277.0,91272.0,0.06573744]
[1767559912980,0.06573327,91278.0,91273.0,0.01095614]
[1767559913181,0.06573261,91279.0,91272.0,0.06573744]
[1767559913436,0.01095578,91276.0,91271.0,0.01095638]
[1767559913635,0.0109559,91275.0,91271.0,0.01095638]
[1767559913780,0.0109559,91275.0,91270.0,0.06034712]
[1767559913984,0.0109559,91275.0,91271.0,0.01095638]
[1767559914258,0.06573486,91276.0,91271.0,0.01095638]
[1767559914401,0.06573451,91277.0,91272.0,0.01095626]
[1767559914598,0.06573293,91279.0,91274.0,0.01095602]
[1767559914949,0.01095554,91278.0,91273.0,0.06573641]
[1767559915102,0.01095554,91278.0,91273.0,0.01095614]
[1767559915405,0.01095566,91277.0,91272.0,0.06573756]
[1767559915605,0.01095566,91277.0,91273.0,0.01095614]
[1767559916144,0.01095542,91279.0,91274.0,0.01095602]
[1767559916295,0.06573266,91279.0,91274.0,0.01095602]
[1767559916492,0.01095554,91278.0,91273.0,0.06573674]
[1767559917745,0.01088676,91278.0,91273.0,0.06573674]
[1767559918047,0.0005127,91273.0,91272.0,0.01095626]
[1767559918348,0.01095566,91277.0,91273.0,6.808e-05]
[1767559918550,0.06566474,91278.0,91273.0,6.808e-05]
[1767559918774,0.01095566,91277.0,91272.0,0.06573735]
[1767559918976,0.06566474,91278.0,91273.0,0.01095614]
[1767559920191,0.01088676,91278.0,91273.0,0.01095614]
[1767559920389,0.06573272,91279.0,91274.0,0.01095602]
[1767559920799,0.01095542,91279.0,91275.0,0.0109559]
[1767559921084,0.0109553,91280.0,91275.0,0.0109559]
[1767559921283,0.02192,91281.0,91280.0,0.000555]
[1767559921496,0.05477403,91285.0,91279.0,0.05477689]
[1767559921702,0.02192,91281.0,91278.0,0.01095554]
[1767559921845,0.00037521,91279.0,91278.0,0.06573265]
[1767559922043,0.02192,91281.0,91277.0,0.01095566]
[1767559922544,0.02192,91281.0,91278.0,0.06573317]
[1767559922981,0.02192,91281.0,91278.0,0.01095554]
[1767559923163,0.02192,91281.0,91277.0,0.06573389]
[1767559923376,0.02192,91281.0,91278.0,0.01095554]
[1767559923819,0.02185121,91281.0,91278.0,0.01095554]
[1767559924246,0.02115842,91281.0,91278.0,0.01095554]
[1767559925411,0.02115842,91281.0,91278.0,0.06573315]
[1767559926139,0.02115842,91281.0,91278.0,0.01095554]
[1767559926383,0.01215842,91281.0,91278.0,0.01095554]
[1767559926548,0.01215842,91281.0,91278.0,0.0657331]
[1767559926858,0.01215842,91281.0,91278.0,0.01095554]
[1767559927256,0.01215842,91281.0,91278.0,0.06573293]
[1767559928661,0.01207026,91281.0,91278.0,0.06573293]
[1767559929496,0.01207026,91281.0,91278.0,0.01095554]
[1767559929847,0.01207026,91281.0,91278.0,0.06573323]
[1767559930081,0.01207026,91281.0,91279.0,0.0547766]
[1767559930333,0.01207026,91281.0,91278.0,0.06573323]
[1767559930643,0.01207026,91281.0,91278.0,0.06573272]
[1767559931064,0.01207026,91281.0,91279.0,0.05477656]
[1767559931281,0.01207026,91281.0,91279.0,0.05477688]
[1767559932267,0.01095482,91284.0,91279.0,0.0657323]
[1767559932441,0.02192,91280.0,91279.0,0.0657323]
[1767559934040,0.000999,91279.0,91278.0,0.01095554]
[1767559934279,0.00892,91280.0,91278.0,0.06573279]
[1767559934982,0.00892,91280.0,91278.0,0.01095554]
[1767559935226,0.00892,91280.0,91278.0,0.06573307]
[1767559935431,0.00892,91280.0,91278.0,0.01095554]
[1767559935636,0.00892,91280.0,91278.0,0.06573313]
[1767559936076,0.00892,91280.0,91278.0,0.06523313]
[1767559937123,0.000999,91278.0,91275.0,0.06573538]
[1767559937321,0.00892,91280.0,91276.0,0.05477887]
[1767559937523,0.00892,91280.0,91277.0,0.06573391]
[1767559937731,0.07465234,91280.0,91275.0,0.0109559]
[1767559937953,0.000999,91275.0,91274.0,0.0657357]
[1767559938102,0.000999,91275.0,91274.0,0.01095602]
[1767559938308,0.000999,91275.0,91274.0,0.06573613]
[1767559938517,0.05477721,91279.0,91274.0,0.06573613]
[1767559939148,0.07465234,91280.0,91275.0,0.0109559]
[1767559939448,0.04719442,91275.0,91269.0,0.06573928]
[1767559939605,0.04619542,91275.0,91272.0,0.06573743]
[1767559939807,0.0109565,91270.0,91265.0,0.00049831]
[1767559940010,0.01095614,91273.0,91268.0,0.01095674]
[1767559940213,0.04619542,91272.0,91269.0,0.00995762]
[1767559940411,0.04619542,91272.0,91269.0,0.06474064]
[1767559940808,0.04619542,91272.0,91269.0,0.01095662]
[1767559941032,0.04619542,91272.0,91269.0,0.06573954]
[1767559941233,0.04619542,91272.0,91269.0,0.01095662]
[1767559941462,0.04619542,91272.0,91268.0,0.06574044]
[1767559941642,0.04619542,91272.0,91269.0,0.01095662]
[1767559942874,0.04619542,91272.0,91269.0,0.06573963]
[1767559943076,0.04619542,91274.0,91269.0,0.06573963]
[1767559943274,0.04619542,91274.0,91270.0,0.0109565]
[1767559943615,0.11193171,91274.0,91269.0,0.06573963]
[1767559943782,0.05715144,91274.0,91269.0,0.06573963]
[1767559944110,0.11193168,91274.0,91269.0,0.06573963]
[1767559944311,0.11193158,91274.0,91269.0,0.06573963]
[1767559944622,0.05715144,91274.0,91270.0,0.0109565]
[1767559945522,0.01095722,91264.0,91261.0,0.0001522]
[1767559945813,0.21912376,91273.0,91252.0,0.03287866]
[1767559945814,0.06574769,91258.0,91252.0,0.03287866]
[1767559946013,0.00991398,91258.0,91253.0,0.06575109]
[1767559946214,0.01095794,91258.0,91253.0,0.06575109]
[1767559946413,0.01095794,91258.0,91254.0,0.01095842]
[1767559946662,0.06574801,91259.0,91254.0,0.01095842]
[1767559946817,0.04874801,91259.0,91254.0,0.06575048]
[1767559947950,0.05479005,91258.0,91252.0,0.08767196]
[1767559948117,0.06574799,91258.0,91253.0,0.06575113]
[1767559948485,0.01095782,91259.0,91254.0,0.05479163]
[1767559948685,0.01095794,91258.0,91252.0,0.03287866]
[1767559948906,0.06574815,91258.0,91252.0,0.08767189]
[1767559949107,0.01095794,91258.0,91252.0,0.06575189]
[1767559949423,0.06574815,91258.0,91253.0,0.03287854]
[1767559949643,0.01095806,91257.0,91253.0,0.03287854]
[1767559949962,0.01095794,91258.0,91253.0,0.08767093]
[1767559951016,0.06574778,91258.0,91253.0,0.08717093]
[1767559951715,0.01095794,91258.0,91254.0,0.01095842]
[1767559951936,0.06574778,91258.0,91253.0,0.03237854]
[1767559952260,0.01095806,91257.0,91253.0,0.02192]
[1767559953135,0.05479196,91255.0,91253.0,0.02192]
[1767559953650,0.06574918,91256.0,91253.0,0.02192]
[1767559954570,0.054791,91256.0,91253.0,0.02192]
[1767559955354,0.01095818,91256.0,91253.0,0.02192]
[1767559955576,0.01095806,91257.0,91253.0,0.02192]
[1767559955781,0.0109131,91257.0,91253.0,0.02192]
[1767559956616,0.0657037,91257.0,91253.0,0.02192]
[1767559956908,0.0657037,91257.0,91253.0,0.03287854]
[1767559956909,0.01095806,91257.0,91253.0,0.03287854]
[1767559957277,0.06574869,91258.0,91253.0,0.08767103]
[1767559957671,0.06574271,91265.0,91260.0,0.0109577]
[1767559957876,0.0109571,91265.0,91261.0,0.01095758]
[1767559958084,0.06574273,91265.0,91260.0,0.06574597]
[1767559958286,0.08766196,91266.0,91260.0,0.06574597]
[1767559958287,0.02192,91266.0,91261.0,0.06574538]
[1767559958486,0.02192,91266.0,91262.0,0.06574444]
[1767559958686,0.02192,91266.0,91263.0,0.01095734]
[1767559959113,0.02192,91266.0,91263.0,0.06574404]
[1767559959518,0.02192,91266.0,91262.0,0.06574474]
[1767559960022,0.02192,91266.0,91263.0,0.01095734]
[1767559960221,0.03287698,91266.0,91262.0,0.01095746]
[1767559960384,0.02192,91266.0,91262.0,0.06574476]
[1767559961002,0.08766201,91266.0,91261.0,0.01095758]
[1767559961205,0.06574261,91265.0,91260.0,0.06574617]
[1767559961624,0.01095722,91264.0,91260.0,0.0109577]
[1767559961815,0.01095734,91263.0,91259.0,0.01095782]
[1767559962013,0.06574338,91264.0,91259.0,0.01095782]
[1767559962216,0.06074338,91264.0,91259.0,0.01095782]
[1767559963815,0.000999,91259.0,91256.0,0.01095818]
[1767559964249,0.04599452,91263.0,91256.0,0.01095818]
[1767559964431,0.06574601,91261.0,91255.0,0.06574975]
[1767559965828,0.05695222,91260.0,91253.0,0.02192]
[1767559966030,0.01095842,91254.0,91249.0,0.0657539]
[1767559966168,0.05579053,91255.0,91249.0,0.0657539]
[1767559966169,0.06674883,91255.0,91252.0,0.02192]
[1767559966369,0.06574925,91256.0,91252.0,0.02192]
[1767559967229,0.11174347,91257.0,91252.0,0.0876719]
[1767559967431,0.01095818,91256.0,91252.0,0.03287866]
[1767559969913,0.06574895,91257.0,91252.0,0.03287866]
[1767559971302,0.01095818,91256.0,91252.0,0.03287866]
[1767559972331,0.06574895,91257.0,91252.0,0.03287866]
[1767559972332,0.01095806,91257.0,91253.0,0.01095854]
[1767559972999,0.06574849,91257.0,91252.0,0.08767176]
[1767559973567,0.06574849,91257.0,91252.0,0.02192]
[1767559973568,0.06574912,91256.0,91252.0,0.02192]
[1767559973769,0.0109583,91255.0,91252.0,0.02192]
[1767559974588,0.06574839,91257.0,91252.0,0.08767186]
[1767559979826,0.05174839,91257.0,91252.0,0.08767186]
[1767559980365,0.06270645,91257.0,91252.0,0.08767186]
[1767559981383,0.06574777,91258.0,91253.0,0.01095854]
[1767559981582,0.06574777,91258.0,91253.0,0.06575123]
[1767559983651,0.01095806,91257.0,91253.0,0.01095854]
[1767559983781,0.06574777,91258.0,91253.0,0.01095854]
[1767559985049,0.01095794,91258.0,91252.0,0.02192]
[1767559985339,0.000999,91253.0,91252.0,0.02192]
[1767559985541,0.01095818,91256.0,91252.0,0.03287866]
[1767559986203,0.01095818,91256.0,91252.0,0.02192]
[1767559987666,0.05479106,91256.0,91252.0,0.02192]
[1767559988049,0.05170702,91257.0,91252.0,0.08767163]
[1767559989204,0.06574922,91256.0,91252.0,0.02192]
[1767559990056,0.06574922,91256.0,91252.0,0.03287866]
[1767559990673,0.01095818,91256.0,91252.0,0.03287866]
[1767559990879,0.05170702,91257.0,91252.0,0.03287866]
[1767559992432,0.01095806,91257.0,91252.0,0.08767186]
[1767559993140,0.06574918,91256.0,91252.0,0.02192]
[1767559994154,0.01095818,91256.0,91252.0,0.03287866]
[1767559994725,0.06574914,91256.0,91252.0,0.02192]
[1767559995626,0.0109577,91260.0,91252.0,0.02192]
[1767559995798,0.06574801,91259.0,91256.0,6.9e-05]
[1767559996024,0.05478978,91258.0,91256.0,6.9e-05]
[1767559996203,0.04383184,91258.0,91256.0,6.9e-05]
[1767559996359,0.04383184,91258.0,91253.0,0.01095854]
[1767559996360,0.01095806,91257.0,91253.0,0.01095854]
[1767559996714,0.05474278,91258.0,91253.0,0.01095854]
[1767559997078,0.01095794,91258.0,91253.0,0.06575077]
[1767559997417,0.01095806,91257.0,91252.0,0.08767181]
[1767559997618,0.06574782,91258.0,91253.0,0.01095854]
[1767559997827,0.06574782,91258.0,91257.0,6.9e-05]
[1767559998006,0.06574854,91257.0,91252.0,0.08767181]
[1767559999039,0.01095806,91257.0,91252.0,0.08767181]
[1767559999176,0.01095806,91257.0,91253.0,0.01095854]
[1767559999751,0.01095806,91257.0,91252.0,0.08767181]
[1767559999752,0.06574842,91257.0,91252.0,0.08767181]
[1767560000483,0.04974842,91257.0,91252.0,0.08767181]
[1767560000832,0.04967962,91257.0,91252.0,0.08767181]
[1767560001239,0.06063768,91257.0,91252.0,0.08767181]
[1767560005903,0.06574782,91258.0,91253.0,0.065751]
[1767560006338,0.06567902,91258.0,91253.0,0.065751]
[1767560008058,0.01095782,91259.0,91254.0,0.06575032]
[1767560008258,0.01095794,91258.0,91254.0,0.06575032]
[1767560008412,0.01088914,91258.0,91254.0,0.01095842]
[1767560008611,0.01082034,91258.0,91254.0,0.01095842]
[1767560009331,0.06561006,91258.0,91253.0,0.065751]
[1767560009493,0.01082034,91258.0,91254.0,0.01095842]
[1767560010031,0.06574704,91259.0,91254.0,0.06575053]
[1767560010228,0.06574704,91259.0,91254.0,0.01095842]
[1767560010583,0.01095794,91258.0,91254.0,0.01095842]
[1767560011047,0.06574704,91259.0,91254.0,0.06575029]
[1767560011261,0.01095722,91264.0,91259.0,6.9e-05]
[1767560011395,0.05478837,91261.0,91259.0,6.9e-05]
[1767560011600,0.05478837,91261.0,91256.0,0.06574903]
[1767560011601,0.01095758,91261.0,91256.0,0.06574903]
[1767560012035,0.06574491,91262.0,91257.0,0.06574821]
[1767560012858,0.01095758,91261.0,91256.0,0.06574903]
[1767560013047,0.06574563,91261.0,91256.0,0.01095818]
[1767560013239,0.01095758,91261.0,91256.0,0.01095818]
[1767560013440,0.01095746,91262.0,91256.0,0.06574906]
[1767560013758,0.06574559,91261.0,91256.0,0.01095818]
[1767560013935,0.06574559,91261.0,91256.0,0.0657489]
[1767560014140,0.06574559,91261.0,91256.0,0.01095818]
[1767560015035,0.06574641,91260.0,91254.0,0.06575053]
[1767560015229,0.06574641,91260.0,91253.0,0.06575018]
[1767560015230,0.01095794,91258.0,91253.0,0.06575018]
[1767560015464,0.01095794,91258.0,91254.0,0.01095842]
[1767560016215,0.06574695,91259.0,91254.0,0.06488853]
[1767560016557,0.06574695,91259.0,91254.0,0.0648885]
[1767560016748,0.06574695,91259.0,91254.0,0.01009642]
[1767560017451,0.06574695,91259.0,91254.0,0.0648885]
[1767560017667,0.06574644,91260.0,91254.0,0.0648885]
[1767560018434,0.0109577,91260.0,91256.0,0.01095818]
[1767560018661,0.0109577,91260.0,91255.0,0.05479114]
[1767560018662,0.06574641,91260.0,91255.0,0.06574944]
[1767560018890,0.0109577,91260.0,91256.0,0.01095818]
[1767560019799,0.06574638,91260.0,91255.0,0.0109583]
[1767560020094,0.0109577,91260.0,91255.0,0.0657495]
[1767560020661,0.01095782,91259.0,91255.0,0.0109583]